Workbook

Sheet Calculator
F1: English | G1: Deutsch
F2: =IF($I$2="Deutsch","Sprache","Choosen Language") -> Sprache | I2: Deutsch
B4: =IF($I$2="Deutsch","*** Dutch Synthetic Reefing *** ( die DSR Method ) ***","*** Dutch Synthetic Reefing *** ( The DSR Method ) ***") -> *** Dutch Synthetic Reefing *** ( die DSR Method ) *** | D4: =IF($I$2="Deutsch","Name:","Name user :") -> Name: | F4: Test Aquarium | I4: vers.170603DEU
B5: =IF($I$2="Deutsch","DSR Mineralien Rechner durch GlennF","DSR Minerals Calculator by GlennF") -> DSR Mineralien Rechner durch GlennF | D5: =IF($I$2="Deutsch","Welche Handlung ? ","What action ? ") -> Welche Handlung ? | F5: Korrektur | I5: =IF($I$2="Deutsch","Zuletzt Bearbeiten","Last saved date") -> Zuletzt Bearbeiten
B6: =IF($I$2="Deutsch"," Berechnungen für die Wassermenge (in Litern)","Water volume for Calculations ( in liters )") -> Berechnungen für die Wassermenge (in Litern) | C6: 100 | I6: =TODAY() -> 2017-06-03 | J6: =IF($I$2="Deutsch","Maximale Tag Korrekturen","Maximum day corrections") -> Maximale Tag Korrekturen | L6: =IF($I$2="Deutsch","Auto doseer oplossingen","Auto dosing Solutions") -> Auto doseer oplossingen
B7: =IF($I$2="Deutsch","Gemessen / Erreichen / max. erhöhen/Tag / Test / intervall","Measurement / Range / max.TopUp/day / Used test / Test interval") -> Gemessen / Erreichen / max. erhöhen/Tag / Test / intervall | D7: =IF($I$2="Deutsch","gemessene werte","Measured value") -> gemessene werte | E7: =IF($I$2="Deutsch","Optimale werte","Target value") -> Optimale werte | F7: =IF($I$2="Deutsch","Korrektur","Correction") -> Korrektur | G7: =IF($I$2="Deutsch","neues wasser","New water") -> neues wasser | I7: =IF($I$2="Deutsch","Einheit / Mittel","Units / Product") -> Einheit / Mittel | J7: =IF($I$2="Deutsch","Dosierung Tage","Total days to dose") -> Dosierung Tage | K7: =IF($I$2="Deutsch","Tag Dosierung ","Single day dosing ") -> Tag Dosierung | L7: =IF($I$2="Deutsch"," (Extra) Verbrauch in dieser Zeit (ml)","(additional) consumption this period (ml)") -> (Extra) Verbrauch in dieser Zeit (ml) | M7: Default target
B8: =IF($I$2="Deutsch","Osmose Wasserbedarf in neue Produktions","RO water required when mixing new water") -> Osmose Wasserbedarf in neue Produktions | F8: =IF(AND(OR($F$5="Correction",$F$5="Korrektur"),$D$9="x"),"No Data",IF(OR($F$5="Korrektur",$F$5="Correction"),"","")) ->  | G8: =IF(OR($F$5="Correction",$F$5="Korrektur"),"",($C$6)*(1-0.0166)) ->  | I8: =IF($I$2="Deutsch","Liters / Osmose water","Liters / RO Water") -> Liters / Osmose water
B9: =IF($I$2="Deutsch","PH: (Target 7,95-8,2) empfohlen wird ein elektronisches Messgerät verwenden.","PH: (Target 7,95-8,2) preferably 24/7 electronic measurement ") -> PH: (Target 7,95-8,2) empfohlen wird ein elektronisches Messgerät verwenden. | C9: 00:00:00 | D9: 7.9 | E9: 8.3 | F9: =IF(AND(OR($F$5="Correction",$F$5="Korrektur"),$D$9="x"),"No Data",IF(OR($F$5="Korrektur",$F$5="Correction"),"","")) ->  | G9: =IF(OR($F$5="Correction",$F$5="Korrektur"),"","---------") ->  | I9: =IF(AND(OR($F$5="Correction",$F$5="Korrektur"),$D$9="x"),"No Data",IF(AND(OR($F$5="Correction",$F$5="Korrektur"),$D$9>7.95)," ","Mit PH + (anstelle von KH +)")) -> Mit PH + (anstelle von KH +) | J9: - | K9: auto | M9: 8.3
B10: =IF($I$2="Deutsch","Salinität: (Target 33-34ppt) – (max. 2ppt/Tag) - Refraktometer - 1 monate.","Salinity: (Target 33-34ppt) – (max. 2ppt/day) – Refractometer - 4wks") -> Salinität: (Target 33-34ppt) – (max. 2ppt/Tag) - Refraktometer - 1 monate. | D10: 33 | E10: 33 | F10: =IF(AND(OR($F$5="Correction",$F$5="Korrektur"),$D$10="x"),"No Data",IF(OR($F$5="Correction",$F$5="Korrektur"),($C$6/100)*($E10-$D10)*100,"")) -> 0 | G10: =IF(OR($F$5="Correction",$F$5="Korrektur"),"",($C$6/100)*($E10-0)*100*(27.2656/35)) ->  | I10: =IF($I$2="Deutsch","g / NaCl+ . reines Salz","g / NaCl+ . pure Salt") -> g / NaCl+ . reines Salz | J10: =ROUNDUP((E10-D10)/2,0) -> 0 | K10: =IF(F10="",0,F10/J10) ->  | M10: 33
B11: =IF($I$2="Deutsch","KH: (Target 7-9) – (max. 1dKH/Tag) - Salifert KH - wöchentlich!","KH: (Target 7-9) – (max. 1dKH/day) - Salifert KH - weekly!") -> KH: (Target 7-9) – (max. 1dKH/Tag) - Salifert KH - wöchentlich! | D11: 7 | E11: 8 | F11: =IF(AND(OR($F$5="Correction",$F$5="Korrektur"),$D$11="x"),"No Data",IF(OR($F$5="Correction",$F$5="Korrektur"),($C$6/100)*($E11-$D11)*3,"")) -> 3 | G11: =IF(OR($F$5="Correction",$F$5="Korrektur"),"",($C$6/100)*($E11-0)*3) ->  | I11: =IF($I$2="Deutsch","g / KH+ .Natriumbicarbonat","g / KH+ . SodiumBicarbonate*") -> g / KH+ .Natriumbicarbonat | J11: =ROUNDUP((E11-D11)/1,0) -> 1 | K11: =IF(F11="",0,F11/J11) -> 3 | L11: =IF(AND(OR($F$5="Correction",$F$5="Korrektur"),$D$11="x"),"No Data",IF(OR($F$5="Correction",$F$5="Korrektur"),($C$6/100)*($E11-$D11)*3*11.1,"")) -> 33.3 | M11: 8
B12: =IF($I$2="Deutsch","Ca: (Target 420-460) – (max. 20ppm/Tag) - Salifert Ca - wöchentlich!","Ca: (Target 420-460) – (max. 20ppm/day) - Salifert Ca - weekly!") -> Ca: (Target 420-460) – (max. 20ppm/Tag) - Salifert Ca - wöchentlich! | D12: 335 | E12: 440 | F12: =IF(AND(OR($F$5="Correction",$F$5="Korrektur"),$D$12="x"),"No Data",IF(OR($F$5="Correction",$F$5="Korrektur"),($C$6/100)*($E12-$D12)*0.3668,"")) -> 38.514 | G12: =IF(OR($F$5="Correction",$F$5="Korrektur"),"",($C$6/100)*($E12-0)*0.3668) ->  | I12: =IF($I$2="Deutsch","g / Ca+ . Calciumchlorid","g / Ca+ . CalciumChloride") -> g / Ca+ . Calciumchlorid | J12: =ROUNDUP((E12-D12)/20,0) -> 6 | K12: =IF(F12="",0,F12/J12) -> 6.419 | L12: =IF(AND(OR($F$5="Correction",$F$5="Korrektur"),$D$12="x"),"No Data",IF(OR($F$5="Correction",$F$5="Korrektur"),($C$6/100)*($E12-$D12)*0.3668*1.429,"")) -> 55.036506 | M12: 440
B13: =IF($I$2="Deutsch","Mg: (Target 1300-1400) – (max. 50ppm/Tag) - Salifert Mg - 1 monate","Mg: (Target 1300-1400) – (max. 50ppm/day) - Salifert Mg - 4wks") -> Mg: (Target 1300-1400) – (max. 50ppm/Tag) - Salifert Mg - 1 monate | D13: 1305 | E13: 1350 | F13: =IF(AND(OR($F$5="Correction",$F$5="Korrektur"),$D$13="x"),"No Data",IF(OR($F$5="Correction",$F$5="Korrektur"),($C$6/100)*($E13-$D13)*0.836,"")) -> 37.62 | G13: =IF(OR($F$5="Correction",$F$5="Korrektur"),"",(($C$6/1000)*($E13-($G$14/$C$6)*1000*(24.31/246.482))*(203.306/24.31))) ->  | I13: =IF($I$2="Deutsch","g / Mg+ .MagnesiumChlorid","g / Mg+ . MagnesiumChloride") -> g / Mg+ .MagnesiumChlorid | J13: =ROUNDUP((E13-D13)/50,0) -> 1 | K13: =IF(F13="",0,F13/J13) -> 37.62 | L13: =IF(AND(OR($F$5="Correction",$F$5="Korrektur"),$D$13="x"),"No Data",IF(OR($F$5="Correction",$F$5="Korrektur"),($C$6/100)*($E13-$D13)*0.836*1.33,"")) -> 50.0346 | M13: 1350
B14: =IF($I$2="Deutsch","Mg+Sulfat: (nur für neue Produktion)","Mg+Sulfate: (only to be used when mixing new water)") -> Mg+Sulfat: (nur für neue Produktion) | D14: x | E14: 904 | F14: =IF(AND(OR($F$5="Correction",$F$5="Korrektur"),$D$13="x"),"No Data",IF(OR($F$5="Correction",$F$5="Korrektur"),($C$6/100)*($E13-$D13)*0.836*0,"")) -> 0 | G14: =IF(OR($F$5="Correction",$F$5="Korrektur"),"",($C$6/1000)*($E14-0)*(246.482/32.06)) ->  | I14: =IF($I$2="Deutsch","g / ....... Magnesiumsulfat","g / ....... MagnesiumSulphate") -> g / ....... Magnesiumsulfat | M14: 904
B15: =IF($I$2="Deutsch","Kalium: (Target 380-420) – (20ppm/Tag) - RedSea Potass. - 2 monate","Potassium: (Target 380-420) – (20ppm/d) - RedSea Potass. - 8wks") -> Kalium: (Target 380-420) – (20ppm/Tag) - RedSea Potass. - 2 monate | D15: 380 | E15: 390 | F15: =IF(AND(OR($F$5="Correction",$F$5="Korrektur"),$D$15="x"),"No Data",IF(OR($F$5="Correction",$F$5="Korrektur"),($C$6/100)*($E15-$D15)*0.667,"")) -> 6.67 | G15: =IF(OR($F$5="Correction",$F$5="Korrektur"),"",($C$6/100)*($E15-0)*0.667*1) ->  | I15: =IF($I$2="Deutsch","ml / K+... Kalium (Flüssigkeit)","ml / K+... PotassiumChloride") -> ml / K+... Kalium (Flüssigkeit) | J15: =ROUNDUP((E15-D15)/20,0) -> 1 | K15: =IF(F15="",0,F15/J15) -> 6.67 | M15: 390
B16: =IF($I$2="Deutsch","Strontium: (Target 3-10) – (3ppm/Tag) - Salifert Sr - (50:1 CaSr= 3 monate)","Strontium: (Target 3-10) – (3ppm/day) - Salifert Sr - (50:1 CaSr=12wks)") -> Strontium: (Target 3-10) – (3ppm/Tag) - Salifert Sr - (50:1 CaSr= 3 monate) | D16: 1 | E16: 8 | F16: =IF(AND(OR($F$5="Correction",$F$5="Korrektur"),$D$16="x"),"No Data",IF(OR($F$5="Correction",$F$5="Korrektur"),($C$6/100)*($E16-$D16)*3.04,"")) -> 21.28 | G16: =IF(OR($F$5="Correction",$F$5="Korrektur"),"",($C$6/100)*($E16-0)*3.04) ->  | I16: ml / Sr+ .... Strontium | J16: =ROUNDUP((E16-D16)/3,0) -> 3 | K16: =IF(F16="",0,F16/J16) -> 7.093333333 | M16: 8
B17: =IF($I$2="Deutsch","Bor: (Target 3,5-4,4) (2ppm/Tag) - Salifert Borium - 3 monate","Boron: (Target 3,5-4,4) (2ppm/day) - Salifert Borium - 12wks") -> Bor: (Target 3,5-4,4) (2ppm/Tag) - Salifert Borium - 3 monate | D17: 1 | E17: 4 | F17: =IF(AND(OR($F$5="Correction",$F$5="Korrektur"),$D$17="x"),"No Data",IF(OR($F$5="Correction",$F$5="Korrektur"),($C$6/100)*($E17-$D17)*12.68,"")) -> 38.04 | G17: =IF(OR($F$5="Correction",$F$5="Korrektur"),"",($C$6/100)*($E17-0)*12.68) ->  | I17: =IF($I$2="Deutsch","ml / B+ ..... Bor","ml / B+ ..... Boron") -> ml / B+ ..... Bor | J17: =ROUNDUP((E17-D17)/2,0) -> 2 | K17: =IF(F17="",0,F17/J17) -> 19.02 | M17: 4
B18: =IF($I$2="Deutsch","Jod: (Target 0,06) – (0,03ppm/Tag) - Salifert I - (0,006ppm/Tag= 2 monate)","Iodide: (Target 0,06) – (0,03ppm/day) - Salifert I - (0,006ppm/d=8wks)") -> Jod: (Target 0,06) – (0,03ppm/Tag) - Salifert I - (0,006ppm/Tag= 2 monate) | D18: 0.03 | E18: 0.06 | F18: =IF(AND(OR($F$5="Correction",$F$5="Korrektur"),$D$18="x"),"No Data",IF(OR($F$5="Correction",$F$5="Korrektur"),($C$6/100)*($E18-$D18)*100*0.26,"")) -> 0.78 | G18: =IF(OR($F$5="Correction",$F$5="Korrektur"),"",($C$6/100)*($E18-0)*100*0.26) ->  | I18: =IF($I$2="Deutsch","ml / I+ ...... Jod","ml / I+ ...... Iodide") -> ml / I+ ...... Jod | J18: =ROUNDUP((E18-D18)/0.03,0) -> 1 | K18: =IF(F18="",0,F18/J18) -> 0.78 | M18: 0.06
B19: =IF($I$2="Deutsch","Mangan (ppb): (Target 0,4ppb) – (dosieren 0,1ppb/Tag) ","Manganese (ppb): (Target 0,4ppb) – (dosing 0,1ppb/day) ") -> Mangan (ppb): (Target 0,4ppb) – (dosieren 0,1ppb/Tag) | D19: 0 | E19: 0.4 | F19: =IF(AND(OR($F$5="Correction",$F$5="Korrektur"),$D$19="x"),"No Data",IF(OR($F$5="Correction",$F$5="Korrektur"),($C$6/100)*($E19-$D19)*10*0.1,"")) -> 0.4 | G19: =IF(OR($F$5="Correction",$F$5="Korrektur"),"",($C$6/100)*($E19-0)*10*0.1) ->  | I19: =IF($I$2="Deutsch","ml / Mn+ ( ppb ).. Mangan","ml / Mn+ ( ppb ) .. Manganese") -> ml / Mn+ ( ppb ).. Mangan | M19: 0.4
B20: =IF($I$2="Deutsch","Phosphat: (Target 0,04-0,08) (0,04ppm/Tag) - RedSea PO4 - wöchentlich!","Phosphate: (Target 0,04-0,08) (0,04ppm/d) - RedSea PO4 - weekly!") -> Phosphat: (Target 0,04-0,08) (0,04ppm/Tag) - RedSea PO4 - wöchentlich! | D20: 0.02 | E20: 0.04 | F20: =IF(AND(OR($F$5="Correction",$F$5="Korrektur",$F$5="New water",$F$5="neues wasser"),$D$20="x"),"No Data",IF(AND(OR($F$5="Correction",$F$5="Korrektur",$F$5="New water",$F$5="neues wasser"),$D$20>$E$20),($C$6/100)*(0.15)*10*0.4975,($C$6/100)*($E20-$D20)*100*0.1)) -> 0.2 | G20: =IF(OR($F$5="Correction",$F$5="Korrektur"),"",($C$6/100)*($E20-0)*100*0.1*0) ->  | I20: =IF(AND(OR($F$5="New water",$F$5="neues wasser"),$D$20="x"),"No Data",IF(AND(OR($F$5="Correction",$F$5="Korrektur",$F$5="New water",$F$5="neues wasser"),$D$20>$E20),"ml / Fe+** 0,15ppm maximal","ml / PO4+ .. Phosphate**")) -> ml / PO4+ .. Phosphate** | J20: 1 | K20: =IF($I$2="Deutsch","Tabelle","table") -> Tabelle | L20: =IF(AND(OR($F$5="New water",$F$5="neues wasser"),$D$20="x"),"",IF(AND(OR($F$5="Correction",$F$5="Korrektur",$F$5="New water",$F$5="neues wasser"),$D$20<0.11,$D$20>0.01),"","< Alarm!")) ->  | M20: 0.04
B21: =IF($I$2="Deutsch","Nitrat: (Target 1-3) (2ppm/Tag) - Salifert NO3 - 3 Wochen","Nitrate: (Target 1-3) (2ppm/d) - Salifert NO3 - 3wks") -> Nitrat: (Target 1-3) (2ppm/Tag) - Salifert NO3 - 3 Wochen | C21: 2xNO3+ | D21: 1.5 | E21: 2.5 | F21: =IF(AND(OR($F$5="Correction",$F$5="Korrektur",$F$5="New water",$F$5="neues wasser"),$D$21="x"),"No Data",IF(AND(OR($F$5="Correction",$F$5="Korrektur"),$D$21>$E$21),"-----",($C$6/100)*($E21-$D21)*(1.44/2))) -> 0.72 | G21: =IF(OR($F$5="Correction",$F$5="Korrektur"),"",($C$6/100)*($E21-0)*(1.44/2)) ->  | I21: =IF(AND(OR($F$5="Correction",$F$5="Korrektur"),$D$21="x"),"No Data",IF(AND(OR($F$5="Correction",$F$5="Korrektur"),$D$21>$E$21),". CarbonVS***.","ml / 2xNO3+ . Nitrate NEW!!!")) -> ml / 2xNO3+ . Nitrate NEW!!! | J21: 1 | K21: =IF($I$2="Deutsch","Tabelle","table") -> Tabelle | L21: =IF(AND(OR($F$5="New water",$F$5="neues wasser"),$D$21="x"),"",IF(AND(OR($F$5="Correction",$F$5="Korrektur",$F$5="New water",$F$5="neues wasser"),$D$21<6,$D$21>0.4),"","< Alarm!")) ->  | M21: 2.5
B22: =IF($I$2="Deutsch","Eisen: (max wert/Kein Zielwert) - Sera Fe - 2 monate","Iron: (Peek value, not target value) - Sera Fe - 8wks") -> Eisen: (max wert/Kein Zielwert) - Sera Fe - 2 monate | D22: 0 | E22: =IF($D$20>$E$20,"0,15","0,02") -> 0,02 | F22: =IF(AND(OR($F$5="Correction",$F$5="Korrektur"),$D$22="x"),"No Data",IF(OR($F$5="Correction",$F$5="Korrektur"),($C$6/100)*(VALUE($E22)-$D22)*10*0.4975,"")) -> 0.0995 | G22: =IF(OR($F$5="Correction",$F$5="Korrektur"),"",($C$6/100)*(VALUE($E22)-0)*10*0.4975) ->  | I22: =IF($I$2="Deutsch","ml / Fe+ .... Eisen** ","ml / Fe+ .... Iron**") -> ml / Fe+ .... Eisen** | J22: 1 | K22: =IF($I$2="Deutsch","allmählich","gradually") -> allmählich | M22: =IF($D$20>$E$20,"0,15","0,02") -> 0,02
B23: =IF($I$2="Deutsch","Kommentar","blabla..............comment in here ........info ...... i.e. How the tank is running and please mention deviatiing used test kit.... ") -> Kommentar | G23: =IF($I$2="Deutsch","Beleuchtung Art und Zusammensetzung:","Lighting type and composition:") -> Beleuchtung Art und Zusammensetzung:
G24: =IF($I$2="Deutsch","Wann die Röhren ersetzt oder Die Lampe angebracht :","please mention when the fixture/lamps were placed or renewed:") -> Wann die Röhren ersetzt oder Die Lampe angebracht :
B26: Blau = Grundlagen , um loszulegen
B27: Grün = Nährstoffe
B28: Orange = Fine Tuning für SPS und LPS
B29: lila = für Rosa und Rot Färbung der Tiere
B30: rot = Probleme werden rot markiert mit Alarm

Sheet Log
C1: DATA LOG (Informationen aus dem DSR-Rechner kopiert) | L1: =+Calculator!F4 -> Test Aquarium | S1: Nie löschen Sie alle Daten über Zeile 5, oder die Grafik nicht mehr funktionieren! Warte nur, bis Sie Ihre eigenen ersten 5 datarows haben, als Sie die „Dummy“ Einsen löschen.
A2: Datum | B2: Aktion | C2: liter | D2: zeit | E2: PH | F2: Sal | G2: KH | H2: Ca | I2: Mg | J2: SO4 | K2: K | L2: Sr | M2: B | N2: I | O2: Mn (ppb) | P2: PO4 | Q2: NO3 | R2: Fe | S2: Kurzer Kommentar zum Tank
A4: 2017-05-24 | B4: Korrektur | C4: 100 | D4: 00:00:00 | E4: 7.9 | F4: 33 | G4: 7 | H4: 335 | I4: 1305 | J4: x | K4: 380 | L4: 1 | M4: 1 | N4: 0.03 | O4: 0 | P4: 0.02 | Q4: 1 | R4: 0 | S4: Kommentar
A5: 2017-05-24 | B5: Korrektur | C5: 100 | D5: 00:00:00 | E5: 8 | F5: 33 | G5: 7 | H5: 335 | I5: 1305 | J5: x | K5: 385 | L5: 1 | M5: 1 | N5: 0.03 | O5: 0 | P5: 0.2 | Q5: 1 | R5: 0 | S5: Kommentar
A6: 2016-11-01 | B6: Correction | C6: 100 | D6: 00:00:00 | E6: 8 | F6: 33 | G6: 7 | H6: 335 | I6: 1305 | J6: x | K6: 385 | L6: 1 | M6: 1 | N6: 0.03 | O6: 0 | P6: 0.02 | Q6: 1 | R6: 0 | S6: Stap3: dit is de meting waarop het nieuwe verbruik wordt bepaald
A7: 2016-10-23 | B7: setpoint | C7: 100 | D7: 12:00:00 | E7: 8 | F7: 33 | G7: 9 | H7: 440 | I7: 1350 | J7: x | K7: 440 | L7: 8 | M7: 4 | N7: 0.06 | O7: 0 | P7: 0.04 | Q7: 2.5 | R7: x | S7: stap2: Hier komen de gecorrigeerde waarden. Die zijn bedoeld als uitgangspunt voor het volgende metingen
A8: 2016-10-23 | B8: Correction | C8: 100 | D8: 12:00:00 | E8: 8 | F8: 33 | G8: 7 | H8: 335 | I8: 1305 | J8: x | K8: 385 | L8: 1 | M8: 1 | N8: 0.03 | O8: 0 | P8: 0.02 | Q8: 1 | R8: 0 | S8: stap 1: dit is de meting voor de correctie
A9: 2016-06-20 | C9: 100 | D9: 13:04:00 | E9: 7.99 | F9: 33 | G9: 7.2 | H9: 480 | I9: x | J9: x | K9: x | L9: x | M9: x | N9: x | O9: x | P9: x | Q9: x | R9: x
A10: 2016-06-09 | B10: Correction | C10: 100 | D10: 11:00:00 | E10: 8.08 | F10: 34.2 | G10: 5.6 | H10: 480 | I10: 1395 | J10: x | K10: 340 | L10: x | M10: x | N10: x | O10: x | P10: 0 | Q10: 0 | R10: x
A11: 2015-06-14 | B11: Correction | C11: 100 | D11: x | E11: x | F11: x | G11: x | H11: x | I11: x | J11: x | K11: x | L11: x | M11: x | N11: x | O11: x | P11: 0 | Q11: 0 | R11: x | S11: blabla..............comment in here ........info ...... i.e. How the tank is running and please mention deviatiing used test kit....
A12: 2015-01-15 | B12: Correction | C12: 100 | D12: 09:30:00 | E12: 7.65 | F12: 32 | G12: 6 | H12: 390 | I12: 1100 | J12: x | K12: 380 | L12: 2 | M12: 2 | N12: 0.01 | O12: 0 | P12: 0.02 | Q12: 0.5 | R12: 0.01 | S12: blabla..............comment in here ........info ...... i.e. How the tank is running and please mention deviatiing used test kit....
A13: 2014-04-01 | B13: Correction | C13: 100 | D13: 12:30:00 | E13: 7 | F13: 33 | G13: 7 | H13: 330 | I13: 1100 | K13: 370 | L13: 6 | M13: 3 | N13: 0.06 | P13: 0.06 | Q13: 2 | R13: 0.01 | S13: bla bla .... ..hier Commentaar ...........info.............b.v. staat van de aquarium en dieren en vermelding van afwijkende test blabla..............comment in here ........info ...... i.e. How the tank is running and please mention deviatiing used test kit....
A14: 2014-03-01 | B14: Correction | C14: 100 | D14: 12:30:00 | E14: 7 | F14: 33 | G14: 7 | H14: 330 | I14: 1100 | K14: 370 | L14: 6 | M14: 3 | N14: 0.04 | P14: 0.04 | Q14: 2 | R14: 0.03 | S14: bla bla .... ..hier Commentaar ...........info.............b.v. staat van de aquarium en dieren en vermelding van afwijkende test blabla..............comment in here ........info ...... i.e. How the tank is running and please mention deviatiing used test kit....
A15: 2014-02-02 | B15: Correction | C15: 100 | D15: 12:30:00 | E15: 6 | F15: 30 | G15: 6 | H15: 340 | I15: 1150 | K15: 360 | L15: 2 | M15: 1 | N15: 0.06 | P15: 0.02 | Q15: 0.5 | R15: 0.05 | S15: bla bla .... ..hier Commentaar ...........info.............b.v. staat van de aquarium en dieren en vermelding van afwijkende test blabla..............comment in here ........info ...... i.e. How the tank is running and please mention deviatiing used test kit....
A16: 2014-01-01 | B16: Correctie waarden | C16: 1 | D16: 12:30:00 | E16: 6 | F16: 33 | G16: 7 | H16: 430 | I16: 1300 | K16: 370 | L16: 3 | M16: 2 | N16: 0.03 | P16: 0.09 | Q16: 8 | R16: 0.03 | S16: ...............comment.......... Comentaar ...........info...... Blablabla

Sheet Fe dosing
A2: Fe + Tagesdosiertisch, als PO4-Entferner zu verwenden
A3: Maximale Einzeldosierung | B3: 1 | C3: =+Calculator!$F$22 -> 0.0995 | D3: ml | E3: Daten aus dem Dosierfeld im DSR-Rechner
F4: name: | G4: =+Calculator!F4 -> Test Aquarium
A5: Tag1 | B5: 0.2 | C5: =$C$3*B5 -> 0.0199 | D5: ml | F5: Gesamtvolumen in Liter | H5: =Calculator!C6 -> 100
A6: Tag2 | B6: 0.4 | C6: =$C$3*B6 -> 0.0398 | D6: ml
A7: Tag3 | B7: 0.6 | C7: =$C$3*B7 -> 0.0597 | D7: ml
A8: Tag4 | B8: 0.8 | C8: =$C$3*B8 -> 0.0796 | D8: ml
A9: Tag5 | B9: 1 | C9: =$C$3*B9 -> 0.0995 | D9: ml
A11: =IF(Calculator!$I$2="Deutsch","** DSR Fe + wird als wirksamer PO4-Entferner verwendet. Eine Überdosierung kann für die Fische gefährlich sein. Dosierung allmählich bauen","** DSR Fe+ is being used as a very efficient PO4 remover. Overdosing can be dangerous for the fishes. Gradualy build up the dosing") -> ** DSR Fe + wird als wirksamer PO4-Entferner verwendet. Eine Überdosierung kann für die Fische gefährlich sein. Dosierung allmählich bauen
A12: =IF(Calculator!$I$2="Deutsch","Fe + (der PO4-Entferner) kann in einem Bereich von PO4> 0,04ppm verwendet werden.","Fe+ (the PO4 remover) can be applied from PO4 range > 0,04ppm") -> Fe + (der PO4-Entferner) kann in einem Bereich von PO4> 0,04ppm verwendet werden.
A13: =IF(Calculator!$I$2="Deutsch","FeTrace kann in einem Bereich von PO4 0,01ppm-0,08ppm verwendet werden.","Fe Trace can be applied in de PO4 range 0,01ppm-0,08ppm") -> FeTrace kann in einem Bereich von PO4 0,01ppm-0,08ppm verwendet werden.
A14: =IF(Calculator!$I$2="Deutsch","Es gibt einen Übergangsbereich, in dem Sie festlegen, welche Eisen besser für Sie wählen können.","There is an overlapping range where you can choose which iron suits your needs best") -> Es gibt einen Übergangsbereich, in dem Sie festlegen, welche Eisen besser für Sie wählen können.
A15: =IF(Calculator!$I$2="Deutsch","Wie viele ppm Eisen dosiert wird eine Wahl. Die Richtlinie ist, dass, wenn eine hohe PO4 Sie auf die maximale Dosis gehen Fe +","How much ppm iron is being dosed is up to you. The guideline is, if you have high PO4 you should apply the maximum dosing Fe+") -> Wie viele ppm Eisen dosiert wird eine Wahl. Die Richtlinie ist, dass, wenn eine hohe PO4 Sie auf die maximale Dosis gehen Fe +

Sheet CarbonVS3
B2: CarbonVS Dosierungsplan 3.0
B3: Schnelle oder normale Dosierung? | E3: Normal | G3: Schnell
B4: Volumen (L) | C4: 100 | E4: v.170523 | G4: Normal
C5: Anfangsdatum | D5: step | E5: Dosierung (ml) | G5: percentage
B6: =IF($E$3="Schnell", "Tag-1","Tag 1-3") -> Tag 1-3 | C6: 2016-11-20 | D6: S1 | E6: =($C$4/100)*0.5*G6 -> 0.5 | G6: 1 | I6: D1 | J6: 1
B7: =IF($E$3="Schnell", "Tag-2","Tag 4-6") -> Tag 4-6 | C7: =IF($E$3="Schnell", C6+1,C6+3) -> 2016-11-23 | D7: S2 | E7: 0.6 | G7: =G6+20% -> 1.2 | I7: D2 | J7: =J6+3 -> 4
B8: =IF($E$3="Schnell", "Tag-3","Tag -7-9") -> Tag -7-9 | C8: 2016-11-26 | D8: S3 | E8: 0.7 | G8: =G7+20% -> 1.4 | I8: D3 | J8: =J7+3 -> 7
B9: =IF($E$3="Schnell", "Tag-4","Tag 10-12") -> Tag 10-12 | C9: 2016-11-29 | D9: S4 | E9: 0.84 | G9: =G8*1.2 -> 1.68 | I9: D4 | J9: 10
B10: =IF($E$3="Schnell", "Tag-5","Tag 13-15") -> Tag 13-15 | C10: 2016-12-02 | D10: S5 | E10: 1.008 | G10: 2.016 | I10: D5 | J10: 13
B11: =IF($E$3="Schnell", "Tag-6","Tag 16-18") -> Tag 16-18 | C11: 2016-12-05 | D11: S6 | E11: 1.2096 | G11: 2.4192 | I11: D6 | J11: 16
B12: =IF($E$3="Schnell", "Tag-7","Tag 19-21") -> Tag 19-21 | C12: 2016-12-08 | D12: S7 | E12: 1.45152 | G12: 2.90304 | I12: D7 | J12: 19
B13: =IF($E$3="Schnell", "Tag-8","Tag 22-24") -> Tag 22-24 | C13: 2016-12-11 | D13: S8 | E13: 1.741824 | G13: 3.483648 | I13: D8 | J13: 22
B14: =IF($E$3="Schnell", "Tag-9","Tag 25-27") -> Tag 25-27 | C14: 2016-12-14 | D14: S9 | E14: 2.0901888 | G14: 4.1803776 | I14: D9 | J14: 25
B15: =IF($E$3="Schnell", "Tag-10","Tag 28-30") -> Tag 28-30 | C15: 2016-12-17 | D15: S10 | E15: 2.50822656 | G15: 5.01645312 | I15: D10 | J15: 28
B16: =IF($E$3="Schnell", "Tag-11","Tag 31-33") -> Tag 31-33 | C16: 2016-12-20 | D16: S11 | E16: 3.009871872 | G16: 6.019743744 | I16: D11 | J16: 31
B17: =IF($E$3="Schnell", "Tag-12","Tag 34-36") -> Tag 34-36 | C17: 2016-12-23 | D17: S12 | E17: 3.611846246 | G17: 7.223692493 | I17: D12 | J17: 34
B18: =IF($E$3="Schnell", "Tag-13","Tag 37-39") -> Tag 37-39 | C18: 2016-12-26 | D18: S13 | E18: 4.334215496 | G18: 8.668430991 | I18: D13 | J18: 37
B19: =IF($E$3="Schnell", "Tag-14","Tag 40-42") -> Tag 40-42 | C19: 2016-12-29 | D19: S14 | E19: 5.201058595 | G19: 10.40211719 | I19: D14 | J19: 40
B20: =IF($E$3="Schnell", "Tag-15","Tag 43=max") -> Tag 43=max | C20: 2017-01-01 | D20: S15 | E20: 6.241270314 | G20: 12.48254063 | I20: D15 | J20: 43
B21: Verwenden Sie nur Schnelldosierung, nachdem das Sandbett gereinigt und powerfilter angewendet wurde, sonst wählen Sie "Normal"

Sheet Volume Calc
E1: English | F1: Nederlands
A3: US Galons > Liters Converter | B3: US Galons | C3: Liters | F3: =IF($H$3="Nederlands","Gekozen Taal","Choosen Language") -> Choosen Language | H3: English
B4: 315 | C4: =B4*3.78541178 -> 1192.404711
A6: *** Water volume Calculator *** | B6: =IF($H$3="Nederlands","Total Berekende Liters","Total Calculated Liters") -> Total Calculated Liters | C6: Result (dm3) = (L) | D6: =IF($H$3="Nederlands","Lengte (cm)","Length (cm)") -> Length (cm) | E6: =IF($H$3="Nederlands","Breedte (cm)","Width (cm)") -> Width (cm) | F6: =IF($H$3="Nederlands"," Water Hoogte (cm)","Water Heigth (cm)") -> Water Heigth (cm) | H6: vers.160314
A7: =IF($H$3="Nederlands","Totaal berekend water volume >>>","Total Calculated water Volume >>>") -> Total Calculated water Volume >>> | B7: =SUM(C7:C19) -> 1747.794 | C7: =(D7*E7*F7)/1000 -> 1180 | D7: 250 | E7: 80 | F7: 59 | H7: =IF($H$3="Nederlands","Showbak","Show Tank") -> Show Tank
A8: .................................................................... | C8: 50.88 | D8: 75 | E8: 64 | F8: 10.6 | H8: Sump
C9: 207.48 | D9: 65 | E9: 76 | F9: 42 | H9: Refugium
C10: 127.6 | D10: 110 | E10: 40 | F10: 29 | H10: Qt1
C11: 51.24 | D11: 30 | E11: 28 | F11: 61 | H11: Qt2
C12: 51.24 | D12: 30 | E12: 28 | F12: 61 | H12: Qt3
C13: 76.05 | D13: 78 | E13: 39 | F13: 25 | H13: Qt4
C14: 40.5 | D14: 50 | E14: 30 | F14: 27 | H14: Qt5
A15: =IF($H$3="Nederlands","De water volume calculator is een hulpmiddel voor het berekenen van de totale water volume. Deze waarde worden NIET overgenomen naar de DSR Calculator ! ","The water volume calculator is a tool to calculate the total water volume. This value is NOT transfered to the DSR Calculator!") -> The water volume calculator is a tool to calculate the total water volume. This value is NOT transfered to the DSR Calculator! | C15: =-(((D15*E15*F7)/1000)-((D15*E15*F15)/1000)) -> -29.696 | D15: 32 | E15: 32 | F15: 30 | H15: =IF($H$3="Nederlands","overloop kamer (buitenmaat)","Skimmer compartment") -> Skimmer compartment
C16: =-(D16*E16*F16)/1000 -> 0 | D16: 0 | E16: 0 | F16: =+F7 -> 59 | H16: =IF($H$3="Nederlands","Droog kamer (buitenmaat)","Cable compartment") -> Cable compartment
C17: =-(D18*E18) -> -7.5 | D17: =IF($H$3="Nederlands","Gewicht (Kg)","Weight (Kg)") -> Weight (Kg) | E17: factor | F17: =IF($H$3="Nederlands","Opbouwen (opgeven gewicht en omreken factor)","Rock formations ( provide weight and factor )") -> Rock formations ( provide weight and factor )
D18: 10 | E18: 0.75
C19: 0 | D19: <<<<< | E19: =IF($H$3="Nederlands","zelf op te geven volume aftrek","Provide own volume to substract from total ") -> Provide own volume to substract from total
C21: kilo > liter omreken factor voor verschillende materialen
C22: =-(D22*E22) -> -8.365116279 | D22: 10 | E22: =35.97/43 -> 0.8365116279 | F22: factor voor koraal zand 0,5-1mm (droog gewicht)
C23: -5.703703704 | D23: 10 | E23: =15.4/27 -> 0.5703703704 | F23: factor voor koraal zand 0,5-1mm (nat gewicht)
A24: =IF($H$3="Nederlands","Alleen de GELE velden zijn te bewerken. Het werkblad is beveiligd om overschrijven van formules te voorkomen","Only the YELLOW fields are editable. The calculation sheet is protected to prevent overwriting of formula's") -> Only the YELLOW fields are editable. The calculation sheet is protected to prevent overwriting of formula's | C24: -7.157894737 | D24: 10 | E24: =27.2/38 -> 0.7157894737 | F24: factor voor dymico filtermassa (dolemiet)
C25: -4.765957447 | D25: 10 | E25: =11.2/23.5 -> 0.4765957447 | F25: factor voor poreus levend steen (luchtig)
C26: -4.541666667 | D26: 10 | E26: =10.9/24 -> 0.4541666667 | F26: factor voor massief levend steen (zwaar)
C27: -3.78440367 | D27: 10 | E27: =8.25/21.8 -> 0.378440367 | F27: factor voor massief cement/beton
C28: =SUM(C22:C27) -> -34.3187425 | D28: totaal
A31: Freier Bearbeitungsbereich >>>>>

Sheet PPM>ml
B1: *** Dutch Synthetic Reefing *** ( de DSR Methode ) *** | C1: Result (Res) (dm3) = (L) | D1: Lengte (cm) | E1: Breedte (cm) | F1: W-Hoogte (cm) | G1: Vers.130721
B2: DSR Mineralen Calculator by GlennF | C2: =(D2*E2*F2)/1000 -> 1180 | D2: 250 | E2: 80 | F2: 59 | G2: Bak (binnemaat)
C3: =(D3*E3*F3)/1000 -> 67.2 | D3: 80 | E3: 70 | F3: 12 | G3: Sump (binnenmaat)
C4: =(D4*E4*F4)/1000 -> 0 | D4: 0 | E4: 70 | F4: 45 | G4: Refugium
B6: PPM > Grams/Milliliters Convertor v.170603
B7: Dosing Liquid ? | D7: Y
B8: Tank volume (Liters) | D8: 100
B9: DSR Products | C9: Start | D9: ppm | E9: dosing | F9: 100% aanmaak | G9: Units | H9: Opm./Check
B10: Salinity/ NaCl: (ppt) | C10: 0 | D10: 1 | E10: =($D$8/100)*(D10-C10)*100 -> 100 | F10: =$E10*0.87 -> 87 | G10: gram | H10: 1ppt = 100gr/100L | K10: Y
B11: PH+ (liquid only) | C11: 0 | D11: 1 | E11: =($D$8/100)*(D11-C11)*3*11.1/2 -> 16.65 | F11: =+E11 -> 16.65 | G11: ml
B12: KH+ | C12: 0 | D12: 1 | E12: =IF($D$7="Y",($D$8/100)*(D12-C12)*3*11.1,($D$8/100)*(D12-C12)*3) -> 33.3 | F12: =+E12 -> 33.3 | G12: =IF($D$7="Y", "ml","gram") -> ml | H12: 1KH = 3gr/100L | K12: N
B13: Ca+ | C13: 0 | D13: 10 | E13: =IF($D$7="Y", ($D$8/100)*(D13-C13)*0.3668*1.429,($D$8/100)*(D13-C13)*0.3668) -> 5.241572 | F13: =+E13 -> 5.241572 | G13: =IF($D$7="Y", "ml","gram") -> ml | H13: 1mg/l = 0,3668gr/100L
B14: Mg+ | C14: 0 | D14: 10 | E14: =IF($D$7="Y", ($D$8/100)*(D14-C14)*0.836*1.33,($D$8/100)*(D14-C14)*0.836) -> 11.1188 | F14: =($E$14/7)*6 -> 9.5304 | G14: =IF($D$7="Y", "ml","gram") -> ml | H14: 1mg/l = 0,836gr/100L
B15: Mg (by MgSO4+) | D15: 10 | E15: =IF($D$7="Y", ($D$8/100)*(D15-C15)*0.836*1.33,($D$8/100)*(D15-C15)*1.01389) -> 11.1188 | F15: =($E$14/7)*6 -> 9.5304 | G15: =IF($D$7="Y", "ml","gram") -> ml
B16: K+ | C16: 0 | D16: 10 | E16: =IF($D$7="Y",($D$8/100)*(D16-C16)*0.667,($D$8/100)*(D16-C16)*0.190476) -> 6.67 | F16: =$E16*0.81 -> 5.4027 | G16: =IF($D$7="Y", "ml","gram") -> ml | H16: 1mg/l =0,190476gr/100L
B17: Sr+ | C17: 0 | D17: 1 | E17: =($D$8/100)*(D17-C17)*3 -> 3 | F17: =+E17 -> 3 | G17: ml | H17: 1mg/l = 3,04ml/100L
B18: B+ | C18: 0 | D18: 1 | E18: =($D$8/100)*(D18-C18)*12.68 -> 12.68 | F18: =+E18 -> 12.68 | G18: ml | H18: 1mg/l = 12,68ml/100L
B19: I2+ | C19: 0 | D19: 0.003 | E19: =($D$8/100)*(D19-C19)*100*0.26 -> 0.078 | F19: =+E19 -> 0.078 | G19: ml | H19: 0,01mg/l = 0,26ml/100L
B20: Mn+ (ppb) | C20: 0 | D20: 0.4 | E20: =($D$8/100)*(D20-C20)*10*0.1 -> 0.4 | G20: ml
B21: PO4+ | C21: 0 | D21: 0.02 | E21: =($D$8/100)*(D21-C21)*100*0.1 -> 0.2 | F21: =+E21 -> 0.2 | G21: ml | H21: 0,01mg/l = 0,1ml/100L
B22: 2xNO3+ new!!! | C22: 0 | D22: 1 | E22: =($D$8/100)*(D22-C22)*(1.44/2) -> 0.72 | F22: =+E22 -> 0.72 | G22: ml | H22: 1mg/l = 1,44ml/100L
B23: Fe Trace / Fe+ | C23: 0 | D23: 0.15 | E23: =($D$8/100)*(D23-C23)*10*0.4975 -> 0.74625 | F23: =+E23 -> 0.74625 | G23: ml | H23: 0,1mg/l = 0,4975ml/100L
B24: CarbonVS (average daily dose) | E24: =(D8/100)*0.5 -> 0.5 | F24: =+E24 -> 0.5 | G24: ml
B25: Amino/C (weekly dose) | E25: =(D8/100)*1 -> 1 | F25: =+E25 -> 1 | G25: ml

Sheet S-calc
A1: Sulfaat calculator v.161102
B2: auto calculator | E2: auto calculator: hiermee wordt berekend wat, je van MgCl2 en MgSO4 nodig heb om de target Mg en S waarden te bereiken
B3: Volume (L) | D3: 650
B4: target Mg | D4: 1350
B5: target S | D5: =904-343 -> 561
A6: manual adjustment
A7: stof | B7: grams | C7: Mg Ions | D7: grams
A8: Mg+ | B8: 0 | C8: =($B$8/$D$3)*1000*(24.31/203.306) -> 0 | D8: =(($D$3/1000)*($D$4-($B$9/$D$3)*1000*(24.31/246.482))*(203.306/24.31)) -> 5026.584206
A9: MgSO4 | B9: 2803 | C9: =($B$9/$D$3)*1000*(24.31/246.482) -> 425.313816 | D9: =($D$3/1000)*($D$5)*(246.482/32.06) -> 2803.482885
A10: MgTotal | C10: =SUM(C8:C9) -> 425.313816
A11: S total | C11: =($B$9/$D$3)*1000*(32.06/246.482) -> 560.9033707
A12: manual adjustment: na invullen van het aantal liters kan je experimenteren en zien wat het effect is van diverse mix verhoudingen op het Mg en S gehalte.
A13: Het bepalen van S toevoegen d.m.v. MgSO4 kan, door het tekort (bij target) en het aantal liters (watervolume) in te vullen. Daarmee wordt aangeven hoeveel MgSO4 aangevuld dient te worden om S op peil te brengen. Het MgSO4 weegt men af en legt dit apart. Dit dient geleidelijk gebruikt te worden i.p.v. Mg+ (MgCl2) om je Mg op peil te houden, totdat het aangegeven hoeveelheid MgSO4 verbruikt is. Omdat de DSR calculator Mg+ berekend, dient het aangeven gewicht met 1,21 vermenigvuldigen te worden bij het toepassen van MgSO4.
